bitfinex/quotes_ETHUSD_20250806
["timestamp","ask_amount","ask_price","bid_price","bid_amount"]
[1754449759149,4.23985574,3593.2,3593.1,0.042]
[1754449759647,1.45682112,3593.2,3593.1,0.042]
[1754449760129,4.23985574,3593.2,3593.1,0.042]
[1754449760548,7.23985574,3593.2,3593.1,0.042]
[1754449766167,11.48785574,3593.2,3593.1,0.042]
[1754449766765,7.23985574,3593.2,3593.1,0.042]
[1754449767072,11.48785574,3593.2,3593.1,0.042]
[1754449768394,7.23985574,3593.2,3593.1,0.042]
[1754449768555,11.48685574,3593.2,3593.1,0.042]
[1754449768990,11.48585574,3593.2,3593.1,0.042]
[1754449770495,11.48485574,3593.2,3593.1,0.042]
[1754449770884,41.76355574,3593.2,3593.1,0.042]
[1754449771073,42.03485574,3593.2,3593.1,0.042]
[1754449772496,37.78985574,3593.2,3593.1,0.042]
[1754449772664,42.03485574,3593.2,3593.1,0.042]
[1754449773299,41.36079037,3593.2,3593.1,0.042]
[1754449773473,41.84719037,3593.2,3593.1,0.042]
[1754449773681,42.29299037,3593.2,3593.1,0.042]
[1754449774660,66.0250029,3593.2,3593.1,0.042]
[1754449778711,66.02582962,3593.2,3593.1,0.042]
[1754449780129,66.02603707,3593.2,3593.1,0.042]
[1754449780650,66.02625145,3593.2,3593.1,0.042]
[1754449781146,66.02625143,3593.2,3593.1,0.042]
[1754449781703,65.58045143,3593.2,3593.1,0.042]
[1754449782034,61.33545143,3593.2,3593.1,0.042]
[1754449782335,65.57645143,3593.2,3593.1,0.042]
[1754449784236,5.78334446,3592.8,3592.7,0.002]
[1754449784541,65.31060029,3592.8,3592.7,0.002]
[1754449787238,61.07060029,3592.8,3592.7,0.002]
[1754449787443,65.31060029,3592.8,3592.7,0.95]
[1754449788957,65.31185561,3592.8,3592.7,0.95]
[1754449789261,65.31185558,3592.8,3592.7,0.95]
[1754449789769,65.31190869,3592.8,3592.7,0.95]
[1754449790113,2.78355471,3592.6,3592.4,0.002]
[1754449790319,4.63989156,3592.5,3592.4,0.002]
[1754449790720,7.42346845,3592.5,3592.4,0.002]
[1754449790944,10.42346845,3592.5,3592.4,0.002]
[1754449791121,12.12440893,3592.5,3592.4,0.002]
[1754449791711,12.57600893,3592.5,3592.4,0.002]
[1754449793714,12.57611845,3592.5,3592.4,0.002]
[1754449794879,11.65271845,3592.5,3592.4,0.002]
[1754449795059,3.39998293,3592.5,3592.4,0.95]
[1754449795266,7.63998293,3592.5,3592.4,0.95]
[1754449795980,3.39998293,3592.5,3592.4,0.95]
[1754449796270,7.3792,3592.5,3592.4,0.95]
[1754449796468,7.3792,3592.5,3592.4,3.73365438]
[1754449796675,7.3792,3592.5,3592.4,0.95]
[1754449800082,7.3792,3592.5,3592.4,3.73365438]
[1754449800580,0.1392,3592.5,3592.4,3.73365438]
[1754449800771,0.1392,3592.5,3592.4,4.3895942]
[1754449801143,4.3792,3592.5,3592.4,4.3895942]
[1754449801342,4.3792,3592.5,3592.4,0.95]
[1754449801568,7.3792,3592.5,3592.4,0.002]
[1754449802497,11.08617689,3592.5,3592.4,0.002]
[1754449804292,7.24,3592.5,3592.4,0.4686]
[1754449804464,0.1392,3592.5,3592.4,3.73365438]
[1754449804670,4.3792,3592.5,3592.4,3.73365438]
[1754449804870,4.3792,3592.5,3592.4,4.11121982]
[1754449805177,0.001,3593.1,3592.4,1.32756544]
[1754449805422,0.1392,3592.7,3592.6,2.78347209]
[1754449805570,4.3792,3592.7,3592.6,3.73147209]
[1754449805754,0.001,3593.1,3593.0,2.78318953]
[1754449805958,7.241,3593.1,3593.0,2.78318953]
[1754449806191,7.241,3593.1,3593.0,3.73118953]
[1754449806896,7.3802,3593.1,3593.0,3.73118953]
[1754449807197,7.3802,3593.1,3593.0,0.948]
[1754449807760,7.3802,3593.1,3593.0,3.73118953]
[1754449808282,31.11221253,3593.1,3592.6,0.948]
[1754449808484,0.1392,3592.8,3592.6,3.73143105]
[1754449808662,4.24,3592.7,3592.6,0.948]
[1754449809064,4.24,3592.7,3592.6,3.73149941]
[1754449810004,0.1392,3592.8,3592.7,2.78342193]
[1754449810160,4.3782,3592.8,3592.7,2.78342193]
[1754449810364,4.3782,3592.8,3592.7,3.73142193]
[1754449812005,0.1392,3592.8,3592.7,3.73142193]
[1754449812208,4.3782,3592.8,3592.7,4.38311541]
[1754449812567,4.3782,3592.8,3592.7,2.78342193]
[1754449813098,4.3782,3592.8,3592.7,0.9045]
[1754449813264,4.3782,3592.8,3592.7,2.78342193]
[1754449813461,4.3782,3592.8,3592.6,2.78348415]
[1754449813666,0.1392,3592.6,3592.4,0.002]
[1754449813997,4.239,3592.5,3592.4,2.78563658]
[1754449814392,4.239,3592.5,3592.4,0.002]
[1754449814578,4.239,3592.5,3592.4,2.78565438]
[1754449814774,4.239,3592.5,3592.4,3.69015438]
[1754449815815,4.239,3592.5,3592.4,2.78565438]
[1754449816162,4.239,3592.5,3592.4,0.002]
[1754449816369,4.239,3592.5,3592.4,2.78565438]
[1754449816920,4.6891,3592.5,3592.4,0.002]
[1754449817209,5.1545,3592.5,3592.4,0.002]
[1754449819415,4.239,3592.5,3592.4,0.002]
[1754449819615,4.239,3592.5,3592.4,2.78565438]
[1754449819822,4.239,3592.5,3592.4,0.002]
[1754449820322,0.1392,3592.6,3592.4,0.002]
[1754449820323,0.1392,3592.6,3592.5,2.78357689]
[1754449820520,4.3782,3592.6,3592.5,3.68807689]
[1754449820934,4.3782,3592.6,3592.5,4.33565122]
[1754449821421,0.1392,3592.6,3592.5,3.68807689]
[1754449821618,4.3782,3592.6,3592.5,2.78357689]
[1754449821821,4.3782,3592.6,3592.4,0.002]
[1754449821822,4.8283,3592.6,3592.4,0.002]
[1754449822037,4.3782,3592.6,3592.4,0.002]
[1754449822405,0.4501,3592.5,3592.4,0.002]
[1754449822587,0.9155,3592.5,3592.4,0.002]
[1754449822783,0.4501,3592.5,3592.4,0.002]
[1754449823104,4.3782,3592.6,3592.4,0.002]
[1754449823698,4.8283,3592.6,3592.4,0.002]
[1754449824922,4.3782,3592.6,3592.4,0.002]
[1754449825099,33.69907689,3592.5,3592.4,0.002]
[1754449825302,3.69907689,3592.5,3592.4,0.002]
[1754449825531,6.69907689,3592.5,3592.4,0.002]
[1754449828938,7.239,3592.5,3592.4,0.002]
[1754449829740,3.0,3592.5,3592.4,0.002]
[1754449829923,7.239,3592.5,3592.4,0.4559]
[1754449830310,7.239,3592.5,3592.4,0.002]
[1754449830647,7.239,3592.5,3592.4,0.9065]
[1754449831151,0.1392,3592.6,3592.5,2.78357689]
[1754449831363,7.3782,3592.6,3592.5,3.68807689]
[1754449832014,0.1392,3592.6,3592.5,4.33565566]
[1754449832214,0.001,3593.1,3592.9,2.78324085]
[1754449832518,0.001,3593.1,3593.0,2.78318953]
[1754449832740,7.24,3593.1,3593.0,3.68768953]
[1754449832941,7.3792,3593.1,3593.0,3.68768953]
[1754449833436,3.1402,3593.1,3593.0,3.68768953]
[1754449833617,7.3792,3593.1,3593.0,3.68768953]
[1754449834246,7.3792,3593.1,3592.4,0.002]
[1754449834247,7.8293,3593.1,3592.6,2.78343327]
[1754449834456,0.1392,3592.7,3592.6,2.78343327]
[1754449834746,4.3782,3592.7,3592.6,2.78343327]
[1754449834947,4.3782,3592.7,3592.6,3.23733327]
[1754449835117,4.3782,3592.7,3592.4,2.78561687]
[1754449835118,4.3782,3592.7,3592.4,2.78562727]
[1754449835312,0.1392,3592.5,3592.4,0.002]
[1754449835541,4.3782,3592.5,3592.4,2.78565438]
[1754449836146,4.8283,3592.5,3592.4,0.002]
[1754449836344,5.58946466,3592.5,3592.4,0.002]
[1754449836679,6.05486466,3592.5,3592.4,0.002]
[1754449837378,8.83844155,3592.5,3592.4,0.002]
[1754449838172,11.83844155,3592.5,3592.4,0.002]
[1754449838578,9.05486466,3592.5,3592.4,0.002]
[1754449838780,11.83844155,3592.5,3592.4,0.002]
[1754449838955,9.05486466,3592.5,3592.4,0.002]
[1754449839587,3.90036466,3592.5,3592.4,0.002]
[1754449839747,7.3782,3592.5,3592.4,0.002]
[1754449839950,7.8283,3592.5,3592.4,0.002]
[1754449841246,7.3782,3592.5,3592.4,0.002]
[1754449841447,7.8283,3592.5,3592.4,0.002]
[1754449841678,7.3782,3592.5,3592.4,0.002]
[1754449842970,8.4393724,3592.5,3592.4,0.002]
[1754449843245,8.9322724,3592.5,3592.4,0.002]
[1754449844048,8.4393724,3592.5,3592.4,0.002]
[1754449844288,7.3782,3592.5,3592.4,0.002]
[1754449844705,3.1392,3592.5,3592.4,0.002]
[1754449844867,4.3782,3592.5,3592.4,3.74045438]
[1754449845049,4.3782,3592.5,3592.4,3.25495438]
[1754449845581,4.3782,3592.5,3592.4,3.74045438]
[1754449848362,0.1392,3592.5,3592.4,3.74045438]
[1754449848589,4.3782,3592.5,3592.4,4.39707971]
[1754449849002,0.1392,3592.5,3592.4,4.39707971]
[1754449849293,4.3782,3592.5,3592.4,4.39707971]
[1754449849455,4.239,3592.5,3592.4,4.39707971]
[1754449849789,4.8711,3592.5,3592.4,0.002]
[1754449849994,5.3289,3592.5,3592.4,0.002]
[1754449852033,4.8711,3592.5,3592.4,0.002]
[1754449852430,5.3289,3592.5,3592.4,0.002]
[1754449853747,6.41848046,3592.5,3592.4,0.002]
[1754449853955,12.20205735,3592.5,3592.4,0.002]
[1754449855584,42.20205735,3592.5,3592.4,0.002]
[1754449855928,42.75205735,3592.5,3592.4,0.002]
[1754449856630,37.96305735,3592.5,3592.4,0.002]
[1754449856878,8.96068046,3592.5,3592.4,0.002]
[1754449858939,12.20205735,3592.5,3592.4,0.002]
[1754449859283,12.75205735,3592.5,3592.4,0.002]
[1754449859440,42.75205735,3592.5,3592.4,0.002]
[1754449861782,36.87315735,3592.5,3592.4,0.002]
[1754449861948,7.3782,3592.5,3592.4,0.002]
[1754449862145,7.3782,3592.5,3592.4,0.4713]
[1754449862340,10.16177689,3592.5,3592.4,0.002]
[1754449862680,7.3782,3592.5,3592.4,0.002]
[1754449863393,10.16177689,3592.5,3592.4,0.002]
[1754449863545,7.3782,3592.5,3592.4,0.002]
[1754449864059,8.72209724,3592.5,3592.4,0.002]
[1754449865389,11.50567413,3592.5,3592.4,0.002]
[1754449865776,8.72209724,3592.5,3592.4,0.002]
[1754449867391,4.48309724,3592.5,3592.4,0.002]
[1754449867557,8.72209724,3592.5,3592.4,0.002]
[1754449867956,11.50567413,3592.5,3592.4,0.002]
[1754449868185,11.99857413,3592.5,3592.4,0.002]
[1754449868399,41.99857413,3592.5,3592.4,0.002]
[1754449869161,11.99857413,3592.5,3592.4,0.002]
[1754449869417,7.3782,3592.5,3592.4,0.002]
[1754449870090,7.3782,3592.5,3592.4,0.4713]
[1754449870249,7.3782,3592.5,3592.4,0.9568]
[1754449870690,3.1392,3592.5,3592.4,0.002]
[1754449870898,3.1392,3592.5,3592.4,0.9568]
[1754449871073,7.3782,3592.5,3592.4,0.9568]
[1754449872799,7.3782,3592.5,3592.4,0.4713]
[1754449873434,7.3782,3592.5,3592.4,0.002]
[1754449874427,7.3782,3592.5,3592.4,0.4613]
[1754449874626,7.3782,3592.5,3592.4,0.9387]
[1754449875122,7.3782,3592.5,3592.4,0.4613]
[1754449875911,7.3782,3592.5,3592.4,0.9387]
[1754449877411,3.1392,3592.5,3592.4,0.9387]
[1754449877619,7.3782,3592.5,3592.4,0.9387]
[1754449879519,3.0,3592.5,3592.4,3.16210321]
[1754449879705,7.239,3592.5,3592.4,4.09880321]
[1754449880217,7.3782,3592.5,3592.4,4.09880321]
[1754449880955,7.3782,3592.5,3592.4,0.4613]
[1754449881332,7.3782,3592.5,3592.4,3.24495438]
[1754449881543,7.3782,3592.5,3592.4,3.72235438]
[1754449882553,7.3782,3592.5,3592.4,0.002]
[1754449882744,7.8592,3592.5,3592.4,0.002]
[1754449883057,8.2916,3592.5,3592.4,0.002]
[1754449883960,7.8592,3592.5,3592.4,0.002]
[1754449885721,11.07517689,3592.5,3592.4,0.002]
[1754449888282,10.83798539,3592.5,3592.4,0.002]
[1754449891871,41.38798539,3592.5,3592.4,0.002]
[1754449899233,39.92458539,3592.5,3592.4,0.002]
[1754449899627,9.92458539,3592.5,3592.4,0.4613]
[1754449900024,0.1392,3592.5,3592.4,0.9387]
[1754449900215,4.3782,3592.5,3592.4,0.9387]
[1754449900418,7.3782,3592.5,3592.4,1.31514606]
[1754449901640,7.3782,3592.5,3592.4,4.09880044]
[1754449902212,3.1392,3592.5,3592.4,1.31514606]
[1754449902418,3.1392,3592.5,3592.4,4.09880044]
[1754449902620,7.3782,3592.5,3592.4,4.09880044]
[1754449902828,7.3782,3592.5,3592.4,1.31514606]
[1754449903138,7.3782,3592.5,3592.4,0.002]
[1754449903946,7.3782,3592.5,3592.4,0.4362]
[1754449904105,7.3782,3592.5,3592.4,0.002]
[1754449906144,7.3782,3592.5,3592.4,0.4362]
[1754449906446,7.3782,3592.5,3592.4,0.9257]
[1754449906746,3.1392,3592.5,3592.4,0.9257]
[1754449906921,7.3782,3592.5,3592.4,0.9257]
[1754449907532,7.3782,3592.5,3592.4,0.002]
[1754449907732,11.09207689,3592.5,3592.4,0.002]
[1754449907914,41.64207689,3592.5,3592.4,0.002]
[1754449908643,41.64207689,3592.5,3591.9,0.002]
[1754449908644,0.55,3592.2,3591.9,0.002]
[1754449908848,30.06698293,3592.0,3591.9,0.002]
[1754449909031,60.20618293,3592.0,3591.9,0.002]
[1754449909243,61.13648293,3592.0,3591.9,0.002]
[1754449913793,3.33411938,3591.8,3591.3,0.002]
[1754449913989,10.71231938,3591.8,3591.3,0.002]
[1754449914191,6.33419689,3591.7,3591.3,0.002]
[1754449914393,6.33435194,3591.5,3591.3,0.002]
[1754449914612,64.44557051,3591.5,3591.3,0.002]
[1754449914979,65.48738351,3591.5,3591.3,0.002]
[1754449915685,65.05008351,3591.5,3591.3,0.002]
[1754449915898,59.65657051,3591.5,3591.3,0.002]
[1754449916216,3.1392,3591.5,3591.3,0.002]
[1754449916386,7.3782,3591.5,3591.4,0.4362]
[1754449916596,7.3782,3591.5,3591.4,0.9257]
[1754449918777,7.3782,3591.5,3591.4,0.4362]
[1754449919111,11.64285194,3591.5,3591.4,0.002]
[1754449919309,41.64285194,3591.5,3591.4,0.002]
[1754449919976,41.20555194,3591.5,3591.4,0.002]
[1754449921804,37.3782,3591.5,3591.4,0.9257]
[1754449922007,3.1392,3591.5,3591.4,0.9257]
[1754449922379,7.3782,3591.5,3591.4,0.9257]
[1754449923079,7.3782,3591.5,3591.4,0.002]
[1754449923080,10.16255194,3591.5,3591.4,0.002]
[1754449923310,7.8712,3591.5,3591.4,0.002]
[1754449923622,7.3782,3591.5,3591.4,0.002]
[1754449924824,3.1392,3591.5,3591.4,0.9257]
[1754449925322,7.3782,3591.5,3591.4,0.9257]
[1754449929465,7.3782,3591.5,3591.4,0.002]
[1754449931652,7.3782,3591.5,3591.4,0.9257]
[1754449932569,7.3782,3591.5,3591.4,0.4362]
[1754449933599,7.3782,3591.5,3591.4,3.68642947]
[1754449933896,3.1392,3591.5,3591.4,3.68642947]
[1754449934054,7.3782,3591.5,3591.4,3.68642947]
[1754449934995,7.3782,3591.5,3591.4,0.902]
[1754449936092,7.3782,3591.5,3591.4,0.4362]
[1754449936362,7.3782,3591.5,3591.4,0.002]
[1754449937898,3.1392,3591.5,3591.4,2.78642947]
[1754449938097,4.3782,3591.5,3591.4,3.71682947]
[1754449938901,4.3782,3591.5,3591.4,0.002]
[1754449939206,4.8503,3591.5,3591.4,0.002]
[1754449939386,9.04704718,3591.5,3591.4,0.002]
[1754449939768,11.83139912,3591.5,3591.4,0.002]
[1754449940181,9.04704718,3591.5,3591.4,0.002]
[1754449941019,11.83139912,3591.5,3591.4,0.002]
[1754449941815,42.38139912,3591.5,3591.4,0.002]
[1754449945902,42.38139912,3591.5,3591.4,1e-08]
[1754449946107,6.33442947,3591.4,3591.3,0.002]
[1754449946325,46.40760403,3591.4,3591.3,0.002]
[1754449947523,6.33458453,3591.2,3591.1,0.042]
[1754449947699,64.3066031,3591.2,3591.1,0.042]
[1754449947905,65.3512031,3591.2,3591.1,0.042]
[1754449948228,65.32892797,3591.2,3591.1,0.042]
[1754449948526,66.09237515,3591.2,3591.1,0.042]
[1754449948926,36.09237515,3591.2,3591.1,0.042]
[1754449949119,66.09237515,3591.2,3591.1,0.042]
[1754449953739,41.92605658,3591.2,3591.1,0.042]
[1754449954246,35.92378453,3591.2,3591.1,0.042]
[1754449954444,40.16278453,3591.2,3591.1,0.9724]
[1754449955644,37.3782,3591.2,3591.1,0.9724]
[1754449956077,40.16278453,3591.2,3591.1,0.9724]
[1754449956637,40.16278453,3591.2,3591.1,0.5066]
[1754449957801,40.16278453,3591.2,3591.1,0.042]
[1754449957982,65.3512031,3591.2,3591.1,0.042]
[1754449958866,6.33466208,3591.1,3591.0,0.002]
[1754449959190,6.33466208,3591.1,3590.8,0.002]
[1754449959191,6.33481717,3590.9,3590.8,0.002]
[1754449959396,6.33481717,3590.9,3590.6,0.002]
[1754449959397,3.33497228,3590.7,3590.6,0.002]
[1754449959566,64.30699085,3590.7,3590.6,0.002]
[1754449959960,65.21239085,3590.7,3590.6,0.002]
[1754449960266,65.49178476,3590.7,3590.6,0.002]
[1754449960465,65.49178476,3590.7,3590.6,1e-08]
[1754449960661,3.33512741,3590.5,3590.3,0.002]
[1754449960902,40.71332741,3590.5,3590.3,0.002]
[1754449961117,41.61872741,3590.5,3590.3,0.002]
[1754449962306,40.71332741,3590.5,3590.3,0.002]
[1754449962864,41.17672741,3590.5,3590.3,0.002]
[1754449963310,36.93772741,3590.5,3590.3,0.002]
[1754449963480,41.17772741,3590.5,3590.3,0.002]
[1754449964094,40.71432741,3590.5,3590.3,0.002]
[1754449964711,37.3792,3590.5,3590.4,0.9352]
[1754449964912,40.16432741,3590.5,3590.4,0.9352]
[1754449965111,41.17772741,3590.5,3590.4,0.002]
[1754449965411,40.71432741,3590.5,3590.4,0.002]
[1754449965791,7.9292,3590.5,3590.4,0.4625]
[1754449966021,7.9292,3590.5,3590.4,0.9352]
[1754449966462,10.71432741,3590.5,3590.4,0.4625]
[1754449966867,2.78536014,3590.2,3590.1,0.04]
[1754449967217,71.46837871,3590.2,3590.1,0.04]
[1754449967362,71.60757871,3590.2,3590.1,0.04]
[1754449967562,72.51767871,3590.2,3590.1,0.04]
[1754449969103,72.07097871,3590.2,3590.1,0.04]
[1754449969403,71.60757871,3590.2,3590.1,0.04]
[1754449969564,72.07097871,3590.2,3590.1,0.04]
[1754449969965,72.51767871,3590.2,3590.1,0.04]
[1754449970764,72.51767871,3590.2,3590.1,1e-08]
[1754449971070,36.33543773,3590.1,3590.0,0.002]
[1754449971200,30.06915475,3589.2,3589.1,0.042]
[1754449971400,64.44835475,3589.2,3589.1,0.042]
[1754449972008,40.71533618,3589.2,3589.1,0.042]
[1754449972322,40.71533618,3589.2,3589.1,0.9752]
[1754449972780,10.71533618,3589.2,3589.1,0.9752]
[1754449972979,10.71533618,3589.2,3589.1,0.5025]
[1754449973201,10.71533618,3589.2,3589.1,0.042]
[1754449973724,10.71533618,3589.2,3589.1,0.9752]
[1754449974217,7.9292,3589.2,3589.1,0.9752]
[1754449974930,3.1392,3589.2,3589.1,0.9752]
[1754449975140,7.3792,3589.2,3589.1,0.9752]
[1754449976233,7.6579,3589.2,3589.1,0.9752]
[1754449976627,7.3792,3589.2,3589.1,0.9752]
[1754449977828,7.3792,3589.2,3589.1,3.76141381]
[1754449979423,3.1392,3589.2,3589.1,4.41639041]
[1754449979599,7.3792,3589.2,3589.1,4.41639041]
[1754449979805,0.1392,3589.2,3589.1,4.41639041]
[1754449980129,4.3792,3589.2,3589.1,4.41639041]
[1754449981251,2.78513733,3590.5,3589.1,4.41639041]
[1754449981252,0.20435135,3590.8,3589.2,2.78613618]
[1754449981415,34.24,3590.7,3590.0,2.78550809]
[1754449981746,3.0,3590.6,3590.3,2.78527087]
[1754449981942,6.69,3591.0,3590.4,0.9332]
[1754449982240,0.1392,3590.5,3590.4,3.71840383]
[1754449982461,7.3792,3590.5,3590.4,3.71840383]
[1754449982822,7.3792,3590.5,3590.4,0.9332]
[1754449984456,7.3792,3590.5,3590.3,2.78526049]
[1754449984756,4.3792,3590.5,3589.9,3.71878402]
[1754449984928,0.1392,3590.0,3589.9,3.71878402]
[1754449985130,4.3792,3590.0,3589.9,4.36923094]
[1754449985636,4.3792,3590.0,3589.6,3.71894855]
[1754449985837,4.24,3590.0,3589.7,3.71894811]
[1754449986079,4.24,3590.0,3589.9,2.78559291]
[1754449986240,4.24,3590.0,3589.9,0.4605]
[1754449986430,4.3792,3590.0,3589.9,0.4605]
[1754449986827,4.3792,3590.0,3589.9,3.24609291]
[1754449987027,4.3792,3590.0,3589.9,3.71879291]
[1754449987966,4.3792,3590.0,3589.9,4.369447]
[1754449989154,4.3792,3590.0,3589.9,3.436247]
[1754449989358,4.3792,3590.0,3589.9,3.24609291]
[1754449989533,4.3792,3590.0,3589.9,3.71879291]
[1754449993561,4.3792,3590.0,3589.7,0.002]
[1754449993770,0.1392,3589.8,3589.7,0.002]
[1754449996673,0.1392,3589.8,3589.7,2.78774811]
[1754449997369,0.1392,3589.8,3589.7,3.39171166]
[1754449997575,4.3782,3589.8,3589.7,4.35691166]
[1754449998472,0.001,3590.5,3589.7,4.35691166]
[1754449998684,3.0,3590.3,3590.2,2.78529801]
[1754449998876,3.39905795,3590.3,3590.2,3.75049801]
[1754449999375,3.39905795,3590.3,3590.2,0.9652]
[1754449999572,4.3782,3590.3,3590.2,3.25136014]
[1754449999882,7.3782,3590.3,3590.2,3.75056014]
[1754450000341,7.3782,3590.3,3590.2,3.25136014]
[1754450000741,7.3782,3590.3,3590.2,3.75056014]
[1754450001166,7.3782,3590.3,3590.2,3.25136014]
[1754450001370,7.3782,3590.3,3590.0,2.78545428]
[1754450001574,7.239,3590.3,3590.1,2.78542188]
[1754450001878,0.1392,3590.2,3590.1,3.25142188]
[1754450002079,0.1392,3590.2,3590.1,2.78542188]
[1754450002283,0.1392,3590.2,3590.1,3.25268895]
[1754450002580,4.3782,3590.2,3590.1,4.21788895]
[1754450002783,4.239,3590.2,3590.1,4.21788895]
[1754450003277,0.1402,3590.5,3590.4,2.78520499]
[1754450003467,4.3792,3590.5,3590.4,2.78520499]
[1754450003780,4.3792,3590.5,3590.4,4.63272383]
[1754450005683,4.24,3590.5,3590.4,4.63272383]
[1754450006949,0.001,3590.5,3590.4,4.63272383]
[1754450007179,4.24,3590.5,3590.4,4.77192383]
[1754450008155,1e-08,3590.5,3590.4,4.77192383]
[1754450010566,1e-08,3590.5,3590.4,4.79977587]
[1754450011679,1e-08,3590.5,3590.4,5.34977587]
[1754450011878,0.001,3590.9,3590.4,5.34977587]
[1754450011879,1e-08,3590.9,3590.8,2.78489473]
[1754450012084,1e-08,3590.9,3590.8,3.34188272]
[1754450012285,1e-08,3590.9,3590.8,3.48108272]
[1754450012489,1e-08,3590.9,3590.8,4.44628272]
[1754450014759,1e-08,3590.9,3590.8,3.48108272]
[1754450015489,1e-08,3590.9,3590.8,3.94708272]
[1754450015797,1e-08,3590.9,3590.8,4.44628272]
[1754450022507,1e-08,3590.9,3590.8,3.48108272]
[1754450023718,0.91320001,3590.9,3590.8,2.92409473]
[1754450023896,0.91320001,3590.9,3590.8,2.78489473]
[1754450024094,1.05240001,3590.9,3590.7,2.78495941]
[1754450024313,5.1502,3590.8,3590.7,2.78495941]
[1754450024619,5.2894,3590.8,3590.1,0.1392]
[1754450024816,5.2894,3590.8,3590.6,2.78503091]
[1754450024817,4.237,3590.8,3590.6,2.78503091]
[1754450024985,0.9132,3590.7,3590.6,2.78503091]
[1754450025181,1.0524,3590.7,3590.6,2.78503091]
[1754450027992,1.0524,3590.7,3590.1,0.1392]
[1754450028198,1.0524,3590.7,3589.7,0.002]
[1754450028199,0.9132,3590.6,3590.2,2.7853314]
[1754450028437,0.52894,3590.7,3590.2,2.7853314]
[1754450028743,0.1392,3590.3,3590.1,2.78542876]
[1754450028901,5.1502,3590.2,3590.1,2.78542876]
[1754450029087,5.1502,3590.2,3590.0,2.78550268]
[1754450029288,0.9132,3590.1,3589.7,0.002]
[1754450029525,0.1392,3589.9,3589.7,0.002]
[1754450030020,0.9132,3589.8,3589.7,0.002]
[1754450031423,7.93587051,3589.8,3589.7,0.002]
[1754450031637,5.1502,3589.8,3589.7,0.002]
[1754450032035,7.93587051,3589.8,3589.7,0.002]
[1754450032616,11.74584582,3589.8,3589.7,0.002]
[1754450032820,12.95449916,3589.8,3589.7,0.002]
[1754450033231,12.95451821,3589.8,3589.7,0.002]
[1754450035839,9.6198477,3589.8,3589.7,0.002]
[1754450036146,12.14552385,3589.8,3589.7,0.002]
[1754450036335,12.40504122,3589.8,3589.7,0.002]
[1754450036834,12.40491304,3589.8,3589.7,0.002]
[1754450037229,12.14552385,3589.8,3589.7,0.002]
[1754450037926,12.40479693,3589.8,3589.7,0.002]
[1754450038332,12.14552385,3589.8,3589.7,0.002]
[1754450039849,9.35985334,3589.8,3589.7,0.002]
[1754450040621,12.14552385,3589.8,3589.7,0.002]
[1754450042443,12.69552385,3589.8,3589.7,0.002]
[1754450042751,12.80707985,3589.8,3589.7,0.002]
[1754450043169,8.56907985,3589.8,3589.7,0.002]
[1754450043468,12.80707985,3589.8,3589.7,0.002]
[1754450044020,42.80707985,3589.8,3589.7,0.002]
[1754450044338,43.0660302,3589.8,3589.7,0.002]
[1754450045238,43.06602013,3589.8,3589.7,0.002]
[1754450045412,2.78574811,3589.7,3589.6,1e-08]
[1754450045610,38.26296591,3589.7,3589.6,1e-08]
[1754450045815,38.40216591,3589.7,3589.6,1e-08]
[1754450047225,42.64116591,3589.7,3589.6,1e-08]
[1754450050139,42.75273591,3589.7,3589.6,1e-08]
[1754450052065,12.75273591,3589.7,3589.6,1e-08]
[1754450052226,42.75273591,3589.7,3589.6,1e-08]
[1754450053082,42.49379563,3589.7,3589.6,1e-08]
[1754450053279,42.75294298,3589.7,3589.6,1e-08]
[1754450053774,42.75310352,3589.7,3589.6,1e-08]
[1754450054770,66.53139494,3589.7,3589.6,1e-08]
[1754450055273,66.81039494,3589.7,3589.6,1e-08]
[1754450056557,0.55,3589.3,3589.2,0.002]
[1754450056744,27.32829142,3589.2,3589.1,0.042]
[1754450056950,58.53719931,3589.2,3589.1,0.042]
[1754450057552,61.32333549,3589.2,3589.1,0.042]
[1754450057795,62.53198883,3589.2,3589.1,0.042]
[1754450058781,66.31798883,3589.2,3589.1,0.042]
[1754450058981,65.82138883,3589.2,3589.1,0.042]
[1754450059354,66.03297196,3589.2,3589.1,0.042]
[1754450059553,42.18229741,3589.2,3589.1,0.5139]
[1754450059754,42.03457852,3589.2,3589.1,0.5139]
[1754450060065,41.92298952,3589.2,3589.1,0.5139]
[1754450060268,37.68398952,3589.2,3589.1,0.5139]
[1754450060469,41.92298952,3589.2,3589.1,0.5139]
[1754450061277,34.34785334,3589.2,3589.1,0.5139]
[1754450061464,37.3782,3589.2,3589.1,0.9653]
[1754450061798,40.16433618,3589.2,3589.1,0.9653]
[1754450062013,40.16433618,3589.2,3589.1,0.042]
[1754450063098,35.92533618,3589.2,3589.1,0.042]
[1754450063302,40.16433618,3589.2,3589.1,0.5139]
[1754450063503,40.16433618,3589.2,3589.1,0.9653]
[1754450063712,35.92533618,3589.2,3589.1,0.9653]
[1754450063864,40.16433618,3589.2,3589.1,0.5139]
[1754450064201,40.16433618,3589.2,3589.1,0.042]
[1754450065813,7.3782,3589.2,3589.1,0.5139]
[1754450066011,4.3782,3589.2,3589.1,0.9653]
[1754450066224,7.3782,3589.2,3589.1,0.9653]
[1754450066402,10.16433618,3589.2,3589.1,0.9653]
[1754450068822,7.3782,3589.2,3589.1,0.9653]
[1754450069498,7.3782,3589.2,3589.1,0.5139]
[1754450069912,3.1392,3589.2,3589.1,0.5139]
[1754450070112,7.3782,3589.2,3589.1,0.9653]